fUSD/lending_fUSD_20250923
["ID","MTS","AMOUNT","RATE_DAILY","PERIOD"]
[387273223,1758671440130,-1046.64,0.00024657,3]
[387273224,1758671440141,-1032.95,0.00024657,3]
[387273225,1758671440151,-969.85,0.00024657,3]
[387273226,1758671440162,-969.85,0.00024657,3]
[387273227,1758671440172,-969.85,0.00024657,3]
[387273228,1758671440182,-969.85,0.00024657,3]
[387273229,1758671440192,-969.85,0.00024657,3]
[387273230,1758671440202,-1495.62,0.00024657,3]
[387273231,1758671440212,-969.85,0.00024657,3]
[387273232,1758671440222,-400.0,0.00024657,3]
[387273233,1758671440233,-1658.83,0.00024657,3]
[387273234,1758671440243,-969.85,0.00024657,3]
[387273235,1758671440253,-969.85,0.00024657,3]
[387273236,1758671440263,-969.85,0.00024657,3]
[387273237,1758671440274,-969.85,0.00024657,3]
[387273238,1758671440284,-620.18,0.00024657,3]
[387273241,1758671440294,-721.63,0.00024657,3]
[387273244,1758671440304,-1268.77,0.00024657,3]
[387273247,1758671440318,-2163.34,0.00024657,3]
[387273250,1758671440330,-533.97,0.00024657,3]
[387273252,1758671440342,-400.0,0.00024657,3]
[387273254,1758671440353,-1821.92,0.00024657,3]
[387273256,1758671440363,-526.59,0.00024657,3]
[387273258,1758671440374,-859.57,0.00024657,3]
[387273260,1758671440384,-400.0,0.00024657,3]
[387273262,1758671440395,-520.16,0.00024657,3]
[387273264,1758671440405,-400.0,0.00024657,3]
[387273266,1758671440415,-417.68,0.00024657,3]
[387273269,1758671440426,-400.0,0.00024657,3]
[387273271,1758671440436,-1714.67,0.00024657,3]
[387273273,1758671440446,-804.51,0.00024657,3]
[387273275,1758671440456,-1084.51,0.00024657,3]
[387273277,1758671440467,-490.38,0.00024657,3]
[387273278,1758671440477,-2080.96,0.00024657,3]
[387273279,1758671440487,-1913.41,0.00024657,3]
[387273281,1758671440497,-400.0,0.00024657,3]
[387273283,1758671440509,-1016.51,0.00024657,3]
[387273284,1758671440519,-400.0,0.00024657,3]
[387273285,1758671440529,-400.0,0.00024657,3]
[387273286,1758671440540,-400.0,0.00024657,3]
[387273287,1758671440550,-519.02,0.00024657,3]
[387273288,1758671440561,-400.0,0.00024657,3]
[387273289,1758671440571,-1794.26,0.00024657,3]
[387273290,1758671440581,-400.0,0.00024657,3]
[387273291,1758671440591,-487.35,0.00024657,2]
[387273292,1758671440602,-2153.94,0.00024657,3]
[387273293,1758671440612,-400.0,0.00024657,3]
[387273294,1758671440622,-1044.34,0.00024657,3]
[387273295,1758671440633,-2681.6,0.00024657,3]
[387273296,1758671440647,-400.0,0.00024657,3]
[387273297,1758671440658,-1243.15,0.00024657,3]
[387273298,1758671440668,-1047.82,0.00024657,3]
[387273299,1758671440679,-400.0,0.00024657,3]
[387273300,1758671440689,-425.96,0.00024657,3]
[387273302,1758671440700,-1105.02,0.00024657,3]
[387273304,1758671440710,-2054.14,0.00024657,3]
[387273306,1758671440720,-886.54,0.00024657,3]
[387273308,1758671440730,-1058.96,0.00024657,3]
[387273309,1758671440741,-400.0,0.00024657,3]
[387273310,1758671440751,-400.0,0.00024657,3]
[387273311,1758671440762,-747.29,0.00024657,3]
[387273314,1758671440772,-400.0,0.00024657,3]
[387273316,1758671440783,-400.0,0.00024657,3]
[387273318,1758671440795,-400.0,0.00024657,3]
[387273320,1758671440805,-1933.23,0.00024657,3]
[387273322,1758671440815,-400.0,0.00024657,3]
[387273324,1758671440826,-400.0,0.00024657,3]
[387273326,1758671440837,-2149.65,0.00024657,3]
[387273328,1758671440847,-2095.83,0.00024657,3]
[387273330,1758671440858,-1692.34,0.00024657,3]
[387273331,1758671440872,-400.0,0.00024657,3]
[387273332,1758671440882,-400.0,0.00024657,3]
[387273333,1758671440892,-400.0,0.00024657,3]
[387273334,1758671440902,-400.0,0.00024657,3]
[387273335,1758671440913,-400.0,0.00024657,3]
[387273336,1758671440923,-400.0,0.00024657,3]
[387273337,1758671440934,-400.0,0.00024657,3]
[387273338,1758671440944,-400.0,0.00024657,3]
[387273339,1758671440955,-2044.87,0.00024657,3]
[387273340,1758671440965,-548.78,0.00024657,3]
[387273341,1758671440976,-400.0,0.00024657,3]
[387273342,1758671440987,-1992.71,0.00024657,3]
[387273343,1758671440997,-2179.77,0.00024657,3]
[387273344,1758671441008,-896.96,0.00024657,3]
[387273345,1758671441019,-500.0,0.00024657,9]
[387273346,1758671441029,-500.0,0.00024657,9]
[387273347,1758671441039,-2058.43,0.00024657,3]
[387273348,1758671441050,-400.0,0.00024657,3]
[387273349,1758671441060,-500.0,0.00024657,9]
[387273350,1758671441071,-500.0,0.00024657,9]
[387273351,1758671441081,-560.86,0.00024657,3]
[387273352,1758671441091,-500.0,0.00024657,9]
[387273353,1758671441103,-1085.01,0.00024657,3]
[387273354,1758671441113,-500.0,0.00024657,9]
[387273355,1758671441123,-500.0,0.00024657,9]
[387273356,1758671441133,-500.0,0.00024657,9]
[387273357,1758671441144,-400.0,0.00024657,3]
[387273358,1758671441154,-400.0,0.00024657,3]
[387273359,1758671441164,-723.7,0.00024657,3]
[387273360,1758671441175,-585.15,0.00024657,3]
[387273361,1758671441186,-2257.14,0.00024657,3]
[387273362,1758671441197,-400.0,0.00024657,3]
[387273363,1758671441209,-475.48,0.00024657,3]
[387273364,1758671441219,-400.0,0.00024657,3]
[387273365,1758671441230,-1852.89,0.00024657,3]
[387273366,1758671441240,-2096.7,0.00024657,3]
[387273367,1758671441250,-1224.91,0.00024657,3]
[387273368,1758671441261,-1931.5,0.00024657,3]
[387273369,1758671441271,-1137.6,0.00024657,3]
[387273370,1758671441281,-388.1020192,0.00024657,3]
[387273371,1758671441291,-400.0,0.00024657,3]
[387273372,1758671441302,-400.0,0.00024657,3]
[387273373,1758671441312,-400.0,0.00024657,3]
[387273374,1758671441322,-400.0,0.00024657,3]
[387273375,1758671441333,-1993.74,0.00024657,3]
[387273376,1758671441343,-1785.6,0.00024657,3]
[387273377,1758671441354,-400.0,0.00024657,3]
[387273378,1758671441364,-2272.82,0.00024657,3]
[387273379,1758671441374,-400.0,0.00024657,3]
[387273380,1758671441386,-400.0,0.00024657,3]
[387273381,1758671441401,-400.0,0.00024657,3]
[387273382,1758671441411,-400.0,0.00024657,3]
[387273383,1758671441423,-2183.81,0.00024657,3]
[387273384,1758671441435,-400.0,0.00024657,3]
[387273385,1758671441445,-400.0,0.00024657,3]
[387273386,1758671441456,-1755.87,0.00024657,3]
[387273387,1758671441468,-1457.92,0.00024657,3]
[387273388,1758671441488,-1641.44,0.00024657,3]
[387273389,1758671441499,-400.0,0.00024657,3]
[387273390,1758671441510,-2662.69,0.00024657,3]
[387273391,1758671441521,-711.83,0.00024657,3]
[387273392,1758671441532,-400.0,0.00024657,3]
[387273393,1758671441542,-400.0,0.00024657,3]
[387273394,1758671441553,-400.0,0.00024657,3]
[387273395,1758671441564,-400.0,0.00024657,3]
[387273396,1758671441574,-835.28,0.00024657,3]
[387273397,1758671441584,-1643.05,0.00024657,3]
[387273398,1758671441594,-1503.31,0.00024657,3]
[387273399,1758671441605,-400.0,0.00024657,3]
[387273400,1758671441615,-1110.16,0.00024657,3]
[387273401,1758671441626,-2027.97,0.00024657,3]
[387273402,1758671441636,-400.0,0.00024657,3]
[387273403,1758671441646,-904.02,0.00024657,3]
[387273404,1758671441657,-400.0,0.00024657,3]
[387273405,1758671441668,-2253.14,0.00024657,3]
[387273406,1758671441678,-400.0,0.00024657,3]
[387273407,1758671441691,-1444.07,0.00024657,3]
[387273408,1758671441702,-1576.85,0.00024657,3]
[387273409,1758671441712,-837.24,0.00024657,3]
[387273410,1758671441724,-497.49,0.00024657,3]
[387273411,1758671441734,-2530.98,0.00024657,3]
[387273412,1758671441745,-400.0,0.00024657,3]
[387273413,1758671441755,-400.0,0.00024657,3]
[387273414,1758671441766,-400.0,0.00024657,3]
[387273415,1758671441776,-400.0,0.00024657,3]
[387273416,1758671441786,-1110.46,0.00024657,3]
[387273417,1758671441796,-482.71,0.00024657,3]
[387273418,1758671441807,-1354.74,0.00024657,3]
[387273419,1758671441817,-400.0,0.00024657,3]
[387273420,1758671441827,-400.0,0.00024657,3]
[387273421,1758671441838,-2287.71,0.00024657,3]
[387273422,1758671441850,-671.71,0.00024657,3]
[387273423,1758671441860,-1742.69,0.00024657,3]
[387273424,1758671441870,-1927.37,0.00024657,3]
[387273425,1758671441880,-1967.58,0.00024657,3]
[387273426,1758671441891,-400.0,0.00024657,3]
[387273427,1758671441901,-734.49,0.00024657,3]
[387273428,1758671441911,-684.97,0.00024657,3]
[387273429,1758671441921,-500.0,0.00024657,3]
[387273430,1758671441931,-2156.83,0.00024657,3]
[387273431,1758671441942,-1170.13,0.00024657,3]
[387273432,1758671441952,-3480.57,0.00024657,3]
[387273433,1758671441962,-2108.88,0.00024657,3]
[387273434,1758671441972,-400.0,0.00024657,3]
[387273435,1758671441983,-514.76,0.00024657,3]
[387273436,1758671441994,-2363.28,0.00024657,3]
[387273437,1758671442005,-204.51436345,0.00024657,3]
[387273438,1758671442015,-565.04,0.00024657,3]
[387273439,1758671442027,-884.45,0.00024657,3]
[387273440,1758671442039,-573.61,0.00024657,3]
[387273441,1758671442050,-400.0,0.00024657,3]
[387273442,1758671442060,-1788.76,0.00024657,3]
[387273443,1758671442070,-600.36,0.00024657,3]
[387273444,1758671442266,-400.0,0.00024657,3]
[387273445,1758671442277,-1958.9,0.00024657,3]
[387273446,1758671442288,-400.0,0.00024657,3]
[387273447,1758671442297,-1268.63,0.00024657,3]
[387273448,1758671442307,-421.6841364,0.00024657,3]
[387273449,1758671442316,-400.0,0.00024657,3]
[387273450,1758671442326,-1586.02,0.00024657,3]
[387273451,1758671442335,-400.0,0.00024657,3]
[387273452,1758671442345,-400.0,0.00024657,3]
[387273453,1758671442354,-1248.51,0.00024657,3]
[387273454,1758671442364,-400.0,0.00024657,3]
[387273455,1758671442375,-526.93,0.00024657,3]
[387273456,1758671442384,-400.0,0.00024657,3]
[387273457,1758671442394,-400.0,0.00024657,3]
[387273458,1758671442403,-1533.27,0.00024657,3]
[387273459,1758671442414,-400.0,0.00024657,3]
[387273460,1758671442424,-400.0,0.00024657,3]
[387273461,1758671442434,-2122.36,0.00024657,3]
[387273462,1758671442443,-1669.54,0.00024657,3]
[387273463,1758671442453,-940.92,0.00024657,3]
[387273464,1758671442462,-400.0,0.00024657,3]
[387273465,1758671442472,-485.41,0.00024657,3]
[387273466,1758671442481,-500.0,0.00024657,2]
[387273467,1758671442490,-589.93,0.00024657,3]
[387273468,1758671442499,-627.36,0.00024657,3]
[387273469,1758671442509,-464.98,0.00024657,3]
[387273470,1758671442518,-1262.85,0.00024657,3]
[387273471,1758671442527,-1013.67,0.00024657,3]
[387273472,1758671442537,-1507.67,0.00024657,3]
[387273473,1758671442546,-400.0,0.00024657,3]
[387273474,1758671442555,-787.64,0.00024657,3]
[387273475,1758671442566,-400.0,0.00024657,3]
[387273476,1758671442576,-400.0,0.00024657,3]
[387273477,1758671442585,-11233.1,0.00024657,3]
[387273478,1758671442594,-400.0,0.00024657,3]
[387273479,1758671442604,-400.27,0.00024657,3]
[387273480,1758671442614,-997.41,0.00024657,3]
[387273481,1758671442624,-400.0,0.00024657,3]
[387273482,1758671442635,-1736.88,0.00024657,3]
[387273483,1758671442645,-400.0,0.00024657,3]
[387273484,1758671442655,-565.7,0.00024657,3]
[387273485,1758671442665,-414.7955423,0.00024657,3]
[387273486,1758671442674,-1541.95,0.00024657,3]
[387273487,1758671442684,-400.0,0.00024657,3]
[387273488,1758671442694,-499.93865948,0.00024657,3]
[387273489,1758671442704,-628.0,0.00024657,3]
[387273490,1758671442714,-8998.78,0.00024657,3]
[387273491,1758671442723,-732.51,0.00024657,3]
[387273492,1758671442733,-400.0,0.00024657,3]
[387273493,1758671442743,-400.0,0.00024657,3]
[387273494,1758671442754,-799.37,0.00024657,3]
[387273495,1758671442763,-428.06,0.00024657,3]
[387273496,1758671442774,-400.0,0.00024657,3]
[387273497,1758671442783,-400.0,0.00024657,3]
[387273498,1758671442795,-1649.76,0.00024657,3]
[387273499,1758671442805,-400.0,0.00024657,3]
[387273500,1758671442816,-400.0,0.00024657,3]
[387273501,1758671442826,-1644.87,0.00024657,3]
[387273502,1758671442836,-971.14,0.00024657,3]
[387273503,1758671442847,-400.0,0.00024657,3]
[387273504,1758671442857,-400.0,0.00024657,3]
[387273505,1758671442867,-220.41189809,0.00024657,3]
[387273506,1758671442877,-1592.92,0.00024657,3]
[387273507,1758671442887,-400.0,0.00024657,3]
[387273508,1758671442897,-400.0,0.00024657,3]
[387273509,1758671442907,-406.59921488,0.00024657,3]
[387273510,1758671442917,-1072.03,0.00024657,3]
[387273511,1758671442928,-921.41,0.00024657,3]
[387273512,1758671442939,-1473.07,0.00024657,3]
[387273513,1758671442950,-400.0,0.00024657,3]
[387273514,1758671442960,-400.0,0.00024657,3]
[387273515,1758671442970,-999.67,0.00024657,3]
[387273516,1758671442981,-967.11,0.00024657,3]
[387273517,1758671442991,-711.22,0.00024657,3]
[387273518,1758671443003,-970.44,0.00024657,3]
[387273519,1758671443013,-400.0,0.00024657,3]
[387273520,1758671443023,-12446.88,0.00024657,3]
[387273521,1758671443033,-400.0,0.00024657,3]
[387273522,1758671443044,-400.0,0.00024657,3]
[387273523,1758671443054,-1688.79,0.00024657,3]
[387273524,1758671443064,-1220.73,0.00024657,3]
[387273525,1758671443074,-400.0,0.00024657,3]
[387273526,1758671443084,-670.69,0.00024657,3]
[387273527,1758671443095,-287.65370493,0.00024657,3]
[387273528,1758671443105,-1844.8,0.00024657,3]
[387273529,1758671443115,-400.0,0.00024657,3]
[387273530,1758671443125,-400.0,0.00024657,3]
[387273531,1758671443134,-1899.25,0.00024657,3]
[387273532,1758671443144,-400.0,0.00024657,3]
[387273533,1758671443154,-1485.72,0.00024657,3]
[387273534,1758671443164,-1097.71,0.00024657,3]
[387273535,1758671443174,-400.0,0.00024657,3]
[387273536,1758671443184,-400.0,0.00024657,3]
[387273537,1758671443194,-418.5,0.00024657,3]
[387273538,1758671443205,-1997.35,0.00024657,3]
[387273539,1758671443214,-1665.3,0.00024657,3]
[387273540,1758671443224,-1909.33,0.00024657,3]
[387273541,1758671443234,-400.0,0.00024657,3]
[387273542,1758671443244,-1171.86,0.00024657,3]
[387273543,1758671443254,-400.0,0.00024657,3]
[387273544,1758671443264,-2115.54,0.00024657,3]
[387273546,1758671443274,-400.0,0.00024657,3]
[387273547,1758671443284,-2003.86,0.00024657,3]
[387273548,1758671443294,-2439.78,0.00024657,3]
[387273549,1758671443303,-400.0,0.00024657,3]
[387273552,1758671443312,-400.0,0.00024657,3]
[387273553,1758671443322,-1865.49,0.00024657,3]
[387273554,1758671443331,-400.0,0.00024657,3]
[387273555,1758671443341,-456.49,0.00024657,3]
[387273556,1758671443350,-1758.41,0.00024657,3]
[387273557,1758671443359,-460.85,0.00024657,3]
[387273558,1758671443369,-674.91,0.00024657,3]
[387273559,1758671443378,-1104.14,0.00024657,3]
[387273560,1758671443387,-830.22,0.00024657,3]
[387273561,1758671443401,-839.12,0.00024657,3]
[387273563,1758671443410,-495.63,0.00024657,3]
[387273564,1758671443420,-400.0,0.00024657,3]
[387273565,1758671443430,-1385.63,0.00024657,3]
[387273566,1758671443440,-1780.08,0.00024657,3]
[387273567,1758671443449,-400.0,0.00024657,3]
[387273568,1758671443458,-400.0,0.00024657,3]
[387273569,1758671443469,-400.0,0.00024657,3]
[387273570,1758671443479,-400.0,0.00024657,3]
[387273571,1758671443489,-680.93,0.00024657,3]
[387273572,1758671443498,-400.0,0.00024657,3]
[387273573,1758671443507,-404.52,0.00024657,3]
[387273574,1758671443517,-400.0,0.00024657,3]
[387273575,1758671443526,-953.32,0.00024657,3]
[387273576,1758671443536,-400.0,0.00024657,3]
[387273577,1758671443546,-400.0,0.00024657,3]
[387273578,1758671443555,-555.24,0.00024657,3]
[387273579,1758671443565,-400.0,0.00024657,3]
[387273580,1758671443575,-427.75,0.00024657,3]
[387273581,1758671443585,-1037.15,0.00024657,3]
[387273582,1758671443594,-400.0,0.00024657,3]
[387273583,1758671443605,-1643.39,0.00024657,3]
[387273584,1758671443615,-538.96,0.00024657,3]
[387273585,1758671443624,-400.0,0.00024657,3]
[387273586,1758671443634,-400.0,0.00024657,3]
[387273587,1758671443644,-1502.8,0.00024657,3]
[387273588,1758671443653,-599.87,0.00024657,3]
[387273589,1758671443662,-1489.54,0.00024657,3]
[387273590,1758671443671,-400.0,0.00024657,3]
[387273591,1758671443681,-925.41,0.00024657,3]
[387273592,1758671443691,-400.0,0.00024657,3]
[387273593,1758671443701,-1716.62,0.00024657,3]
[387273594,1758671443710,-2189.23,0.00024657,3]
[387273595,1758671443720,-409.62501431,0.00024657,3]
[387273596,1758671443730,-1032.95,0.00024657,3]
[387273597,1758671443739,-400.0,0.00024657,3]
[387273598,1758671443748,-668.08,0.00024657,3]
[387273599,1758671443758,-400.0,0.00024657,3]
[387273600,1758671443768,-400.0,0.00024657,3]
[387273601,1758671443777,-400.0,0.00024657,3]
[387273602,1758671443786,-415.70869723,0.00024657,3]
[387273603,1758671443796,-539.01,0.00024657,3]
[387273604,1758671443805,-1277.67,0.00024657,3]
[387273605,1758671443814,-400.0,0.00024657,3]
[387273606,1758671443824,-400.0,0.00024657,3]
[387273607,1758671443833,-1700.17,0.00024657,3]
[387273609,1758671443843,-1519.87,0.00024657,3]
[387273611,1758671443852,-400.0,0.00024657,3]
[387273612,1758671443861,-478.55,0.00024657,3]
[387273613,1758671443871,-400.0,0.00024657,3]
[387273614,1758671443881,-517.32,0.00024657,3]
[387273615,1758671443891,-169.18057786,0.00024657,3]
[387273616,1758671443900,-905.44,0.00024657,3]
[387273617,1758671443910,-478.38,0.00024657,3]
[387273618,1758671443920,-400.0,0.00024657,3]
[387273619,1758671443931,-807.5,0.00024657,3]
[387273620,1758671443940,-1665.98,0.00024657,3]
[387273621,1758671443949,-400.0,0.00024657,3]
[387273622,1758671443959,-400.0,0.00024657,3]
[387273623,1758671443969,-400.0,0.00024657,3]
[387273624,1758671443979,-400.0,0.00024657,3]
[387273625,1758671443988,-400.0,0.00024657,3]
[387273626,1758671443998,-522.64,0.00024657,3]
[387273627,1758671444008,-400.0,0.00024657,3]
[387273628,1758671444018,-1706.16,0.00024657,3]
[387273629,1758671444027,-2604.02,0.00024657,3]
[387273631,1758671444037,-400.0,0.00024657,3]
[387273633,1758671444047,-400.0,0.00024657,3]
[387273635,1758671444056,-924.52,0.00024657,3]
[387273637,1758671444066,-400.0,0.00024657,3]
[387273639,1758671444075,-1318.52,0.00024657,3]
[387273641,1758671444086,-482.58,0.00024657,3]
[387273642,1758671444095,-600.35,0.00024657,3]
[387273643,1758671444105,-448.98,0.00024657,3]
[387273644,1758671444114,-1818.04,0.00024657,3]
[387273645,1758671444124,-400.0,0.00024657,3]
[387273646,1758671444134,-400.0,0.00024657,3]
[387273647,1758671444143,-634.64,0.00024657,3]
[387273648,1758671444153,-2295.58,0.00024657,3]
[387273649,1758671444162,-400.0,0.00024657,3]
[387273650,1758671444171,-1744.95,0.00024657,3]
[387273651,1758671444181,-400.0,0.00024657,3]
[387273652,1758671444190,-400.0,0.00024657,3]
[387273653,1758671444199,-400.0,0.00024657,3]
[387273654,1758671444209,-1697.53,0.00024657,3]
[387273655,1758671444218,-400.0,0.00024657,3]
[387273656,1758671444228,-400.0,0.00024657,3]
[387273657,1758671444238,-400.0,0.00024657,3]
[387273658,1758671444248,-1750.76,0.00024657,3]
[387273659,1758671444259,-523.47,0.00024657,3]
[387273660,1758671444268,-400.0,0.00024657,3]
[387273661,1758671444277,-1501.49,0.00024657,3]
[387273662,1758671444287,-584.6,0.00024657,3]
[387273663,1758671444297,-1029.46,0.00024657,3]
[387273664,1758671444306,-400.0,0.00024657,3]
[387273665,1758671444316,-300.0,0.00024657,3]
[387273666,1758671444326,-257.41,0.00024657,3]
[387273667,1758671444336,-400.0,0.00024657,3]
[387273668,1758671444346,-1403.55,0.00024657,3]
[387273669,1758671444355,-400.0,0.00024657,3]
[387273670,1758671444365,-400.0,0.00024657,3]
[387273671,1758671444374,-665.45,0.00024657,3]
[387273672,1758671444384,-400.0,0.00024657,3]
[387273673,1758671444394,-667.57,0.00024657,3]
[387273674,1758671444405,-400.0,0.00024657,3]
[387273675,1758671444415,-585.19,0.00024657,3]
[387273676,1758671444424,-400.0,0.00024657,3]
[387273677,1758671444433,-400.0,0.00024657,3]
[387273678,1758671444443,-1016.64,0.00024657,3]
[387273679,1758671444452,-1516.12,0.00024657,3]
[387273680,1758671444462,-1148.87,0.00024657,3]
[387273681,1758671444472,-2856.02,0.00024657,3]
[387273682,1758671444481,-451.42,0.00024657,3]
[387273683,1758671444490,-597.08,0.00024657,3]
[387273684,1758671444500,-1841.89,0.00024657,3]
[387273685,1758671444511,-457.21,0.00024657,3]
[387273686,1758671444521,-2039.42,0.00024657,3]
[387273687,1758671444531,-872.01,0.00024657,3]
[387273688,1758671444540,-872.0,0.00024657,3]
[387273689,1758671444550,-1072.76,0.00024657,3]
[387273690,1758671444559,-400.0,0.00024657,3]
[387273691,1758671444569,-400.0,0.00024657,3]
[387273692,1758671444579,-1863.77,0.00024657,3]
[387273693,1758671444588,-418.47578251,0.00024657,3]
[387273694,1758671444598,-12031.4,0.00024657,3]
[387273695,1758671444607,-400.0,0.00024657,3]
[387273696,1758671444617,-1517.69,0.00024657,3]
[387273697,1758671444627,-400.0,0.00024657,3]
[387273698,1758671444637,-973.88,0.00024657,3]
[387273699,1758671444647,-400.0,0.00024657,3]
[387273700,1758671444657,-2052.25,0.00024657,3]
[387273701,1758671444668,-400.0,0.00024657,3]
[387273702,1758671444677,-2290.5,0.00024657,3]
[387273703,1758671444686,-421.5,0.00024657,3]
[387273704,1758671444696,-400.0,0.00024657,3]
[387273705,1758671444705,-875.31,0.00024657,3]
[387273706,1758671444715,-787.4,0.00024657,3]
[387273707,1758671444725,-834.86,0.00024657,3]
[387273708,1758671444734,-400.0,0.00024657,3]
[387273709,1758671444744,-1969.99,0.00024657,3]
[387273710,1758671444753,-1871.32,0.00024657,3]
[387273711,1758671444763,-1968.86,0.00024657,3]
[387273712,1758671444773,-400.0,0.00024657,3]
[387273713,1758671444782,-1001.46,0.00024657,3]
[387273714,1758671444792,-2338.02,0.00024657,3]
[387273715,1758671444803,-809.92,0.00024657,3]
[387273716,1758671444814,-400.0,0.00024657,3]
[387273717,1758671444824,-528.7,0.00024657,3]
[387273718,1758671444836,-400.0,0.00024657,3]
[387273719,1758671444847,-400.0,0.00024657,3]
[387273720,1758671444857,-400.0,0.00024657,3]
[387273721,1758671444868,-518.71,0.00024657,3]
[387273722,1758671444878,-682.25,0.00024657,3]
[387273723,1758671444888,-538.63,0.00024657,3]
[387273724,1758671444900,-6813.21,0.00024657,3]
[387273725,1758671444911,-400.0,0.00024657,3]
[387273726,1758671444923,-400.0,0.00024657,3]
[387273727,1758671444934,-1204.94,0.00024657,3]
[387273728,1758671444944,-691.64,0.00024657,3]
[387273729,1758671444955,-2224.96,0.00024657,3]
[387273730,1758671444966,-433.61,0.00024657,3]
[387273731,1758671444979,-1768.9,0.00024657,3]
[387273732,1758671444990,-670.24,0.00024657,3]
[387273733,1758671445001,-1599.97,0.00024657,3]
[387273734,1758671445013,-400.0,0.00024657,3]
[387273735,1758671445025,-400.0,0.00024657,3]
[387273736,1758671445035,-400.0,0.00024657,3]
[387273737,1758671445046,-400.0,0.00024657,3]
[387273738,1758671445057,-400.0,0.00024657,3]
[387273739,1758671445067,-1777.77,0.00024657,3]
[387273740,1758671445077,-2355.35,0.00024657,3]
[387273741,1758671445087,-2806.8,0.00024657,3]
[387273742,1758671445097,-1377.85,0.00024657,3]
[387273743,1758671445107,-1234.47,0.00024657,3]
[387273744,1758671445117,-580.65,0.00024657,3]
[387273745,1758671445128,-1489.61,0.00024657,3]
[387273746,1758671445137,-400.0,0.00024657,3]
[387273747,1758671445147,-400.0,0.00024657,3]
[387273748,1758671445157,-400.0,0.00024657,3]
[387273749,1758671445166,-400.0,0.00024657,3]
[387273750,1758671445176,-400.0,0.00024657,3]
[387273751,1758671445186,-515.55439972,0.00024657,3]
[387273752,1758671445196,-400.0,0.00024657,3]
[387273753,1758671445205,-400.0,0.00024657,3]
[387273754,1758671445215,-400.0,0.00024657,3]
[387273755,1758671445225,-525.92,0.00024657,3]
[387273756,1758671445235,-1407.87,0.00024657,3]
[387273757,1758671445245,-825.6,0.00024657,3]
[387273758,1758671445255,-565.28,0.00024657,3]
[387273759,1758671445265,-400.0,0.00024657,3]
[387273760,1758671445274,-400.0,0.00024657,3]
[387273761,1758671445285,-433.87,0.00024657,3]
[387273762,1758671445294,-400.0,0.00024657,3]
[387273763,1758671445304,-491.7,0.00024657,3]
[387273764,1758671445315,-471.21,0.00024657,3]
[387273765,1758671445325,-1319.48,0.00024657,3]
[387273766,1758671445334,-1026.07,0.00024657,3]
[387273767,1758671445343,-400.0,0.00024657,3]
[387273768,1758671445353,-400.0,0.00024657,3]
[387273769,1758671445363,-400.0,0.00024657,3]
[387273770,1758671445373,-2049.28,0.00024657,3]
[387273771,1758671445382,-941.43,0.00024657,3]
[387273772,1758671445393,-400.0,0.00024657,3]